[Event "Titled Tuesday Blitz June 6 Late 2023"]
[White "Swicarz, Maciej"]
[Black "Gonzalez Vega, Alejandro"]
[WhiteFideId "1113585"]
[BlackFideId "3510042"]
[WhiteElo "2181"]
[BlackElo "2315"]
[Result "1-0"]
[Round "10"]
[TimeControl "180+2"]
[Date "2023.06.07"]
[WhiteClock "0:00:50"]
[BlackClock "0:00:01"]
[Board "90"]

1. c4 {[%clk 0:03:00]}  e5 {[%clk 0:02:58]} 2. d3 {[%clk 0:02:59]}  Nc6 {[%clk 0:02:58]} 3. Nf3 {[%clk 0:02:58]}  Bc5 {[%clk 0:02:59]} 4. a3 {[%clk 0:02:56]}  a5 {[%clk 0:02:57]} 5. e3 {[%clk 0:02:56]}  Ba7 {[%clk 0:02:56]} 6. d4 {[%clk 0:02:54]}  exd4 {[%clk 0:02:55]} 7. exd4 {[%clk 0:02:54]}  d6 {[%clk 0:02:45]} 8. Be2 {[%clk 0:02:53]}  Nf6 {[%clk 0:02:44]} 9. h3 {[%clk 0:02:52]}  h6 {[%clk 0:02:44]} 10. Be3 {[%clk 0:02:51]}  O-O {[%clk 0:02:44]} 11. O-O {[%clk 0:02:51]}  Re8 {[%clk 0:02:43]} 12. Nc3 {[%clk 0:02:50]}  Bf5 {[%clk 0:02:42]} 13. Bd3 {[%clk 0:02:46]}  Qd7 {[%clk 0:02:35]} 14. d5 {[%clk 0:02:43]}  Ne5 {[%clk 0:02:26]} 15. Nxe5 {[%clk 0:02:41]}  Rxe5 {[%clk 0:02:23]} 16. Bxa7 {[%clk 0:02:37]}  Rxa7 {[%clk 0:02:22]} 17. b4 {[%clk 0:02:31]}  axb4 {[%clk 0:02:15]} 18. Bxf5 {[%clk 0:02:27]}  Qxf5 {[%clk 0:02:11]} 19. axb4 {[%clk 0:02:27]}  Rxa1 {[%clk 0:02:10]} 20. Qxa1 {[%clk 0:02:28]}  b6 {[%clk 0:01:49]} 21. Nb5 {[%clk 0:02:25]}  Re7 {[%clk 0:01:40]} 22. Re1 {[%clk 0:02:20]}  Rxe1+ {[%clk 0:01:33]} 23. Qxe1 {[%clk 0:02:20]}  Qd3 {[%clk 0:01:33]} 24. Qf1 {[%clk 0:02:10]}  Qb3 {[%clk 0:01:32]} 25. Nxc7 {[%clk 0:02:10]}  Qxb4 {[%clk 0:01:31]} 26. Nb5 {[%clk 0:02:06]}  Qc5 {[%clk 0:01:30]} 27. Qd3 {[%clk 0:02:02]}  Qb4 {[%clk 0:01:20]} 28. Nd4 {[%clk 0:01:50]}  Qe1+ {[%clk 0:01:17]} 29. Qf1 {[%clk 0:01:50]}  Qe4 {[%clk 0:01:14]} 30. Nb5 {[%clk 0:01:47]}  Qe7 {[%clk 0:01:01]} 31. g3 {[%clk 0:01:44]}  h5 {[%clk 0:00:58]} 32. Qd1 {[%clk 0:01:41]}  g6 {[%clk 0:00:45]} 33. Qd4 {[%clk 0:01:39]}  Nd7 {[%clk 0:00:44]} 34. Kg2 {[%clk 0:01:35]}  Nc5 {[%clk 0:00:41]} 35. Qf4 {[%clk 0:01:33]}  Nd3 {[%clk 0:00:17]} 36. Qd4 {[%clk 0:01:19]}  Nc5 {[%clk 0:00:15]} 37. h4 {[%clk 0:01:19]}  f6 {[%clk 0:00:10]} 38. Kh2 {[%clk 0:01:11]}  Kf7 {[%clk 0:00:09]} 39. Qf4 {[%clk 0:01:10]}  Kg7 {[%clk 0:00:08]} 40. Nxd6 {[%clk 0:01:03]}  Nd3 {[%clk 0:00:07]} 41. Qd4 {[%clk 0:00:56]}  Nxf2 {[%clk 0:00:04]} 42. Nf5+ {[%clk 0:00:53]}  gxf5 {[%clk 0:00:03]} 43. Qxf2 {[%clk 0:00:53]}  Qc7 {[%clk 0:00:01]} 44. Qf4 {[%clk 0:00:51]}  Qxc4 {[%clk 0:00:01]} 45. Qxc4 {[%clk 0:00:50]} 1-0


[Site "https://www.chess.com"]

[Event "Titled Tuesday Blitz June 6 Late 2023"]
[White "KorolDimitriy75"]
[Black "Celestino, Rafael Teixeira"]
[BlackFideId "2108925"]
[WhiteElo "2432"]
[BlackElo "2305"]
[Result "1-0"]
[Round "10"]
[TimeControl "180+2"]
[Date "2023.06.07"]
[WhiteClock "0:00:20"]
[BlackClock "0:01:49"]
[Board "91"]

1. d4 {[%clk 0:03:00]}  Nf6 {[%clk 0:02:59]} 2. c4 {[%clk 0:03:01]}  e6 {[%clk 0:03:00]} 3. Nc3 {[%clk 0:03:01]}  d5 {[%clk 0:03:01]} 4. Bg5 {[%clk 0:03:01]}  Bb4 {[%clk 0:03:01]} 5. cxd5 {[%clk 0:03:01]}  exd5 {[%clk 0:03:02]} 6. e3 {[%clk 0:03:01]}  c6 {[%clk 0:03:02]} 7. Bd3 {[%clk 0:02:59]}  O-O {[%clk 0:03:03]} 8. Qc2 {[%clk 0:02:58]}  h6 {[%clk 0:03:01]} 9. Bh4 {[%clk 0:02:58]}  Nbd7 {[%clk 0:02:59]} 10. Ne2 {[%clk 0:02:58]}  Qc7 {[%clk 0:03:00]} 11. f3 {[%clk 0:02:54]}  Re8 {[%clk 0:03:00]} 12. Bf2 {[%clk 0:02:53]}  Nf8 {[%clk 0:02:59]} 13. O-O {[%clk 0:02:51]}  Bd6 {[%clk 0:02:57]} 14. h3 {[%clk 0:02:49]}  Nh5 {[%clk 0:02:56]} 15. e4 {[%clk 0:02:39]}  Ng3 {[%clk 0:02:54]} 16. e5 {[%clk 0:02:16]}  Nxe2+ {[%clk 0:02:54]} 17. Bxe2 {[%clk 0:02:14]}  Be7 {[%clk 0:02:54]} 18. Nxd5 {[%clk 0:02:13]}  Qd8 {[%clk 0:02:53]} 19. Nc3 {[%clk 0:02:02]}  Bh4 {[%clk 0:02:51]} 20. Rad1 {[%clk 0:02:00]}  Be6 {[%clk 0:02:50]} 21. f4 {[%clk 0:01:55]}  Bxf2+ {[%clk 0:02:45]} 22. Rxf2 {[%clk 0:01:56]}  Qh4 {[%clk 0:02:45]} 23. f5 {[%clk 0:01:50]}  Bd7 {[%clk 0:02:44]} 24. Ne4 {[%clk 0:01:36]}  Rad8 {[%clk 0:02:42]} 25. Nd6 {[%clk 0:01:35]}  Qg3 {[%clk 0:02:38]} 26. Nxe8 {[%clk 0:01:12]}  Rxe8 {[%clk 0:02:39]} 27. Qc3 {[%clk 0:00:57]}  Qg5 {[%clk 0:02:37]} 28. Rdf1 {[%clk 0:00:56]}  Nh7 {[%clk 0:02:32]} 29. Kh2 {[%clk 0:00:54]}  b6 {[%clk 0:02:29]} 30. Qg3 {[%clk 0:00:49]}  Qd2 {[%clk 0:02:23]} 31. Bd3 {[%clk 0:00:42]}  Qg5 {[%clk 0:02:11]} 32. h4 {[%clk 0:00:37]}  Qxg3+ {[%clk 0:02:02]} 33. Kxg3 {[%clk 0:00:38]}  Rd8 {[%clk 0:02:02]} 34. Be4 {[%clk 0:00:34]}  Be8 {[%clk 0:02:01]} 35. Rd2 {[%clk 0:00:29]}  Nf8 {[%clk 0:01:58]} 36. Kf4 {[%clk 0:00:28]}  Nh7 {[%clk 0:01:58]} 37. Ke3 {[%clk 0:00:28]}  Nf8 {[%clk 0:01:58]} 38. Rc1 {[%clk 0:00:28]}  Rc8 {[%clk 0:01:57]} 39. Rdc2 {[%clk 0:00:28]}  g6 {[%clk 0:01:52]} 40. g4 {[%clk 0:00:26]}  f6 {[%clk 0:01:48]} 41. Bxc6 {[%clk 0:00:24]}  Bf7 {[%clk 0:01:43]} 42. b3 {[%clk 0:00:21]}  Rd8 {[%clk 0:01:41]} 43. Be4 {[%clk 0:00:20]}  fxe5 {[%clk 0:01:40]} 44. dxe5 {[%clk 0:00:20]}  Re8 {[%clk 0:01:41]} 45. e6 {[%clk 0:00:20]}  Bxe6 {[%clk 0:01:39]} 46. fxe6 {[%clk 0:00:20]}  Nxe6 {[%clk 0:01:40]} 47. Rc8 {[%clk 0:00:19]}  Kf7 {[%clk 0:01:39]} 48. Rxe8 {[%clk 0:00:19]}  Kxe8 {[%clk 0:01:40]} 49. Rd1 {[%clk 0:00:18]}  Ke7 {[%clk 0:01:40]} 50. Bf3 {[%clk 0:00:18]}  Nc5 {[%clk 0:01:40]} 51. Kf2 {[%clk 0:00:18]}  Ke6 {[%clk 0:01:40]} 52. Re1+ {[%clk 0:00:17]}  Kf6 {[%clk 0:01:38]} 53. Kg3 {[%clk 0:00:17]}  Nd3 {[%clk 0:01:39]} 54. Rd1 {[%clk 0:00:17]}  Nb4 {[%clk 0:01:39]} 55. Rd2 {[%clk 0:00:17]}  a5 {[%clk 0:01:39]} 56. a3 {[%clk 0:00:16]}  Na6 {[%clk 0:01:38]} 57. Rd6+ {[%clk 0:00:17]}  Ke5 {[%clk 0:01:37]} 58. Rxb6 {[%clk 0:00:17]}  Nc7 {[%clk 0:01:37]} 59. Rxg6 {[%clk 0:00:17]}  h5 {[%clk 0:01:37]} 60. Rg5+ {[%clk 0:00:17]}  Kf6 {[%clk 0:01:37]} 61. gxh5 {[%clk 0:00:18]}  Ne8 {[%clk 0:01:38]} 62. h6 {[%clk 0:00:18]}  Nd6 {[%clk 0:01:38]} 63. h7 {[%clk 0:00:17]}  Nf7 {[%clk 0:01:39]} 64. Rg8 {[%clk 0:00:18]}  a4 {[%clk 0:01:38]} 65. h8=Q+ {[%clk 0:00:18]}  Nxh8 {[%clk 0:01:39]} 66. Rxh8 {[%clk 0:00:19]}  axb3 {[%clk 0:01:39]} 67. Rb8 {[%clk 0:00:19]}  b2 {[%clk 0:01:40]} 68. Rxb2 {[%clk 0:00:19]}  Ke5 {[%clk 0:01:41]} 69. a4 {[%clk 0:00:19]}  Kd4 {[%clk 0:01:42]} 70. a5 {[%clk 0:00:19]}  Kc3 {[%clk 0:01:43]} 71. Rb8 {[%clk 0:00:19]}  Kd4 {[%clk 0:01:44]} 72. a6 {[%clk 0:00:20]}  Kc5 {[%clk 0:01:45]} 73. a7 {[%clk 0:00:21]}  Kd6 {[%clk 0:01:46]} 74. a8=Q {[%clk 0:00:21]}  Ke5 {[%clk 0:01:47]} 75. Rb5+ {[%clk 0:00:20]}  Kd4 {[%clk 0:01:47]} 76. Qa4+ {[%clk 0:00:20]}  Ke3 {[%clk 0:01:48]} 77. Rb3+ {[%clk 0:00:20]}  Kd2 {[%clk 0:01:49]} 78. Qa2+ {[%clk 0:00:20]}  Kc1 {[%clk 0:01:49]} 79. Rb1# {[%clk 0:00:20]} 1-0


[Site "https://www.chess.com"]

[Event "Titled Tuesday Blitz June 6 Late 2023"]
[White "Kostiukov, Alexandr"]
[Black "Ozalp, Burak"]
[WhiteFideId "14108100"]
[BlackFideId "6314210"]
[WhiteElo "2202"]
[BlackElo "2106"]
[Result "1-0"]
[Round "10"]
[TimeControl "180+2"]
[Date "2023.06.07"]
[WhiteClock "0:00:18"]
[BlackClock "0:00:20"]
[Board "92"]

1. g3 {[%clk 0:02:54]}  g6 {[%clk 0:02:58]} 2. Bg2 {[%clk 0:02:50]}  Bg7 {[%clk 0:02:58]} 3. c4 {[%clk 0:02:50]}  c5 {[%clk 0:02:55]} 4. Nf3 {[%clk 0:02:51]}  Nc6 {[%clk 0:02:55]} 5. O-O {[%clk 0:02:51]}  Nh6 {[%clk 0:02:55]} 6. Nc3 {[%clk 0:02:45]}  Nf5 {[%clk 0:02:54]} 7. d3 {[%clk 0:02:42]}  O-O {[%clk 0:02:52]} 8. Rb1 {[%clk 0:02:41]}  d6 {[%clk 0:02:48]} 9. a3 {[%clk 0:02:41]}  Rb8 {[%clk 0:02:42]} 10. Bd2 {[%clk 0:02:41]}  b6 {[%clk 0:02:42]} 11. b4 {[%clk 0:02:40]}  Bb7 {[%clk 0:02:42]} 12. Re1 {[%clk 0:02:21]}  h6 {[%clk 0:02:41]} 13. e3 {[%clk 0:02:15]}  e6 {[%clk 0:02:41]} 14. Qc2 {[%clk 0:02:09]}  Qd7 {[%clk 0:02:28]} 15. Ne4 {[%clk 0:01:54]}  d5 {[%clk 0:02:20]} 16. cxd5 {[%clk 0:01:43]}  exd5 {[%clk 0:02:21]} 17. Nc3 {[%clk 0:01:39]}  Rfd8 {[%clk 0:02:10]} 18. bxc5 {[%clk 0:01:35]}  bxc5 {[%clk 0:02:10]} 19. d4 {[%clk 0:01:28]}  cxd4 {[%clk 0:02:06]} 20. exd4 {[%clk 0:01:24]}  Rbc8 {[%clk 0:01:51]} 21. Qd3 {[%clk 0:00:59]}  Ba8 {[%clk 0:01:32]} 22. Bh3 {[%clk 0:00:41]}  Na5 {[%clk 0:01:19]} 23. Bxf5 {[%clk 0:00:33]}  Qxf5 {[%clk 0:01:19]} 24. Qxf5 {[%clk 0:00:33]}  gxf5 {[%clk 0:01:20]} 25. Nb5 {[%clk 0:00:29]}  Nc4 {[%clk 0:00:59]} 26. Nxa7 {[%clk 0:00:23]}  Nxd2 {[%clk 0:00:59]} 27. Nxd2 {[%clk 0:00:23]}  Rc2 {[%clk 0:00:46]} 28. Nf3 {[%clk 0:00:21]}  Bf6 {[%clk 0:00:30]} 29. Nb5 {[%clk 0:00:20]}  Bc6 {[%clk 0:00:28]} 30. a4 {[%clk 0:00:20]}  Ra8 {[%clk 0:00:26]} 31. Rec1 {[%clk 0:00:19]}  Bd7 {[%clk 0:00:20]} 32. Rxc2 {[%clk 0:00:18]} 1-0


[Site "https://www.chess.com"]

[Event "Titled Tuesday Blitz June 6 Late 2023"]
[White "Stachanczyk, Jacek"]
[Black "Simonovic, Miroslav"]
[WhiteFideId "1116657"]
[BlackFideId "919152"]
[WhiteElo "2084"]
[BlackElo "2075"]
[Result "0-1"]
[Round "10"]
[TimeControl "180+2"]
[Date "2023.06.07"]
[WhiteClock "0:00:01"]
[BlackClock "0:00:20"]
[Board "93"]

1. e4 {[%clk 0:02:56]}  c5 {[%clk 0:03:00]} 2. Nf3 {[%clk 0:02:55]}  Nc6 {[%clk 0:03:00]} 3. d4 {[%clk 0:02:56]}  cxd4 {[%clk 0:03:01]} 4. Nxd4 {[%clk 0:02:56]}  g6 {[%clk 0:03:02]} 5. c4 {[%clk 0:02:56]}  Bg7 {[%clk 0:03:02]} 6. Be3 {[%clk 0:02:56]}  d6 {[%clk 0:03:02]} 7. Nc3 {[%clk 0:02:56]}  Nf6 {[%clk 0:03:03]} 8. Be2 {[%clk 0:02:55]}  Bd7 {[%clk 0:02:58]} 9. Qd2 {[%clk 0:02:42]}  h5 {[%clk 0:02:57]} 10. f3 {[%clk 0:02:39]}  Qa5 {[%clk 0:02:52]} 11. Nb3 {[%clk 0:02:34]}  Qd8 {[%clk 0:02:46]} 12. O-O {[%clk 0:02:34]}  O-O {[%clk 0:02:45]} 13. h3 {[%clk 0:02:25]}  Rc8 {[%clk 0:02:44]} 14. f4 {[%clk 0:02:25]}  Na5 {[%clk 0:02:37]} 15. Nxa5 {[%clk 0:02:05]}  Qxa5 {[%clk 0:02:38]} 16. Rac1 {[%clk 0:01:57]}  Rfd8 {[%clk 0:02:31]} 17. b3 {[%clk 0:01:55]}  Bc6 {[%clk 0:02:17]} 18. Bd3 {[%clk 0:01:55]}  a6 {[%clk 0:02:00]} 19. Qf2 {[%clk 0:01:12]}  Nd7 {[%clk 0:01:35]} 20. Bd2 {[%clk 0:00:58]}  Qc5 {[%clk 0:01:28]} 21. Qxc5 {[%clk 0:00:55]}  Nxc5 {[%clk 0:01:27]} 22. Bb1 {[%clk 0:00:51]}  Bxc3 {[%clk 0:01:28]} 23. Bxc3 {[%clk 0:00:50]}  Bxe4 {[%clk 0:01:21]} 24. Bd4 {[%clk 0:00:40]}  Bxb1 {[%clk 0:01:19]} 25. Rxb1 {[%clk 0:00:41]}  Ne4 {[%clk 0:01:17]} 26. Rfe1 {[%clk 0:00:27]}  f5 {[%clk 0:01:16]} 27. Bb6 {[%clk 0:00:25]}  Re8 {[%clk 0:01:14]} 28. Rbd1 {[%clk 0:00:25]}  Rc6 {[%clk 0:01:13]} 29. Bd4 {[%clk 0:00:23]}  Kf7 {[%clk 0:01:12]} 30. Bb2 {[%clk 0:00:22]}  Rc7 {[%clk 0:01:05]} 31. Rd5 {[%clk 0:00:20]}  e6 {[%clk 0:01:05]} 32. Rdd1 {[%clk 0:00:19]}  e5 {[%clk 0:01:04]} 33. fxe5 {[%clk 0:00:17]}  dxe5 {[%clk 0:01:05]} 34. g4 {[%clk 0:00:15]}  hxg4 {[%clk 0:01:02]} 35. hxg4 {[%clk 0:00:15]}  Ke6 {[%clk 0:01:01]} 36. Kg2 {[%clk 0:00:15]}  Rd7 {[%clk 0:00:48]} 37. Rxd7 {[%clk 0:00:13]}  Kxd7 {[%clk 0:00:49]} 38. Rh1 {[%clk 0:00:13]}  Re7 {[%clk 0:00:40]} 39. Kf3 {[%clk 0:00:10]}  Ng5+ {[%clk 0:00:38]} 40. Kg3 {[%clk 0:00:09]}  f4+ {[%clk 0:00:37]} 41. Kg2 {[%clk 0:00:08]}  Ke6 {[%clk 0:00:32]} 42. Rh6 {[%clk 0:00:04]}  Rg7 {[%clk 0:00:31]} 43. Rh8 {[%clk 0:00:02]}  Re7 {[%clk 0:00:24]} 44. Rh6 {[%clk 0:00:01]}  Kf6 {[%clk 0:00:21]} 45. Rh8 {[%clk 0:00:01]}  Nf7 {[%clk 0:00:20]} 0-1


[Site "https://www.chess.com"]

[Event "Titled Tuesday Blitz June 6 Late 2023"]
[White "Mazurkiewicz, Michal"]
[Black "Wang, Alexander J"]
[WhiteFideId "1124943"]
[BlackFideId "30955270"]
[WhiteElo "2063"]
[BlackElo "2266"]
[Result "1-0"]
[Round "10"]
[TimeControl "180+2"]
[Date "2023.06.07"]
[WhiteClock "0:02:03"]
[BlackClock "0:01:03"]
[Board "94"]

1. e4 {[%clk 0:03:00]}  c5 {[%clk 0:02:53]} 2. Nf3 {[%clk 0:03:00]}  e6 {[%clk 0:02:52]} 3. d3 {[%clk 0:03:00]}  Nc6 {[%clk 0:02:51]} 4. g3 {[%clk 0:03:00]}  d5 {[%clk 0:02:51]} 5. Nbd2 {[%clk 0:02:59]}  Nf6 {[%clk 0:02:50]} 6. Bg2 {[%clk 0:02:59]}  Be7 {[%clk 0:02:50]} 7. O-O {[%clk 0:02:59]}  O-O {[%clk 0:02:49]} 8. e5 {[%clk 0:03:00]}  Nd7 {[%clk 0:02:48]} 9. Re1 {[%clk 0:03:01]}  b6 {[%clk 0:02:43]} 10. h4 {[%clk 0:03:00]}  Bb7 {[%clk 0:02:42]} 11. c3 {[%clk 0:03:00]}  d4 {[%clk 0:02:36]} 12. c4 {[%clk 0:03:00]}  Qc7 {[%clk 0:02:34]} 13. Qe2 {[%clk 0:03:00]}  a6 {[%clk 0:02:26]} 14. Nf1 {[%clk 0:03:00]}  b5 {[%clk 0:02:25]} 15. b3 {[%clk 0:03:00]}  bxc4 {[%clk 0:02:23]} 16. bxc4 {[%clk 0:03:01]}  a5 {[%clk 0:02:18]} 17. Bf4 {[%clk 0:03:01]}  a4 {[%clk 0:02:15]} 18. N1h2 {[%clk 0:02:57]}  a3 {[%clk 0:02:15]} 19. Ng5 {[%clk 0:02:54]}  Bxg5 {[%clk 0:02:06]} 20. hxg5 {[%clk 0:02:54]}  Nb4 {[%clk 0:02:03]} 21. Bxb7 {[%clk 0:02:46]}  Qxb7 {[%clk 0:02:02]} 22. Rad1 {[%clk 0:02:46]}  Nb6 {[%clk 0:01:58]} 23. Qh5 {[%clk 0:02:45]}  Na4 {[%clk 0:01:17]} 24. Ng4 {[%clk 0:02:44]}  Nc3 {[%clk 0:01:15]} 25. Rd2 {[%clk 0:02:20]}  Nbxa2 {[%clk 0:01:07]} 26. Nf6+ {[%clk 0:02:19]}  gxf6 {[%clk 0:01:05]} 27. gxf6 {[%clk 0:02:19]}  Rfb8 {[%clk 0:01:03]} 28. Qg5+ {[%clk 0:02:16]}  Kf8 {[%clk 0:01:03]} 29. Qg7+ {[%clk 0:02:16]}  Ke8 {[%clk 0:01:03]} 30. Qg8+ {[%clk 0:02:16]}  Kd7 {[%clk 0:01:03]} 31. Qxf7+ {[%clk 0:02:17]}  Kc6 {[%clk 0:01:04]} 32. Qxe6+ {[%clk 0:02:17]}  Kc7 {[%clk 0:01:04]} 33. Qd6+ {[%clk 0:02:04]}  Kc8 {[%clk 0:01:03]} 34. e6 {[%clk 0:02:03]} 1-0


[Site "https://www.chess.com"]

[Event "Titled Tuesday Blitz June 6 Late 2023"]
[White "Ogreberbere"]
[Black "Pace, Christopher"]
[BlackFideId "2610167"]
[WhiteElo "2188"]
[BlackElo "2324"]
[Result "0-1"]
[Round "10"]
[TimeControl "180+2"]
[Date "2023.06.07"]
[WhiteClock "0:00:01"]
[BlackClock "0:00:17"]
[Board "96"]

1. d4 {[%clk 0:03:00]}  Nf6 {[%clk 0:02:52]} 2. c4 {[%clk 0:03:00]}  g6 {[%clk 0:02:52]} 3. Nc3 {[%clk 0:03:00]}  Bg7 {[%clk 0:02:52]} 4. e4 {[%clk 0:02:59]}  O-O {[%clk 0:02:48]} 5. Nf3 {[%clk 0:02:59]}  d6 {[%clk 0:02:41]} 6. Be2 {[%clk 0:02:59]}  e5 {[%clk 0:02:40]} 7. O-O {[%clk 0:02:58]}  exd4 {[%clk 0:02:38]} 8. Nxd4 {[%clk 0:02:57]}  Re8 {[%clk 0:02:35]} 9. f3 {[%clk 0:02:56]}  c6 {[%clk 0:02:35]} 10. Kh1 {[%clk 0:02:53]}  Nbd7 {[%clk 0:02:18]} 11. Be3 {[%clk 0:02:50]}  a5 {[%clk 0:02:16]} 12. Qd2 {[%clk 0:02:49]}  Nc5 {[%clk 0:02:06]} 13. Rad1 {[%clk 0:02:48]}  Nfd7 {[%clk 0:02:02]} 14. Rfe1 {[%clk 0:02:46]}  a4 {[%clk 0:01:56]} 15. Bf2 {[%clk 0:02:32]}  Qb6 {[%clk 0:01:51]} 16. Bf1 {[%clk 0:02:21]}  a3 {[%clk 0:01:34]} 17. b3 {[%clk 0:02:10]}  Qb4 {[%clk 0:01:30]} 18. Nce2 {[%clk 0:01:42]}  Qxd2 {[%clk 0:01:14]} 19. Rxd2 {[%clk 0:01:42]}  f5 {[%clk 0:00:52]} 20. exf5 {[%clk 0:01:32]}  Ne5 {[%clk 0:00:45]} 21. Ng3 {[%clk 0:01:22]}  Bh6 {[%clk 0:00:38]} 22. Rdd1 {[%clk 0:01:15]}  Bd7 {[%clk 0:00:22]} 23. Be3 {[%clk 0:01:13]}  Nxf3 {[%clk 0:00:18]} 24. gxf3 {[%clk 0:01:01]}  Rxe3 {[%clk 0:00:18]} 25. Rxe3 {[%clk 0:00:52]}  Bxe3 {[%clk 0:00:19]} 26. Ne4 {[%clk 0:00:46]}  Bxd4 {[%clk 0:00:16]} 27. Rxd4 {[%clk 0:00:44]}  Nxb3 {[%clk 0:00:12]} 28. Rxd6 {[%clk 0:00:25]}  Bxf5 {[%clk 0:00:12]} 29. c5 {[%clk 0:00:20]}  Bxe4 {[%clk 0:00:12]} 30. fxe4 {[%clk 0:00:19]}  Nxc5 {[%clk 0:00:12]} 31. Bc4+ {[%clk 0:00:17]}  Kg7 {[%clk 0:00:12]} 32. Rd2 {[%clk 0:00:12]}  b5 {[%clk 0:00:10]} 33. Bf1 {[%clk 0:00:09]}  Nxe4 {[%clk 0:00:10]} 34. Rd7+ {[%clk 0:00:08]}  Kf6 {[%clk 0:00:11]} 35. Rc7 {[%clk 0:00:08]}  c5 {[%clk 0:00:09]} 36. Bg2 {[%clk 0:00:07]}  Re8 {[%clk 0:00:09]} 37. Rc6+ {[%clk 0:00:06]}  Kf5 {[%clk 0:00:08]} 38. Rb6 {[%clk 0:00:05]}  b4 {[%clk 0:00:07]} 39. Rc6 {[%clk 0:00:04]}  Nc3 {[%clk 0:00:08]} 40. Rxc5+ {[%clk 0:00:03]}  Re5 {[%clk 0:00:08]} 41. Rxe5+ {[%clk 0:00:02]}  Kxe5 {[%clk 0:00:09]} 42. Bf1 {[%clk 0:00:01]}  Nxa2 {[%clk 0:00:10]} 43. Bc4 {[%clk 0:00:02]}  Nc3 {[%clk 0:00:10]} 44. Bb3 {[%clk 0:00:02]}  Kd4 {[%clk 0:00:11]} 45. Kg2 {[%clk 0:00:02]}  a2 {[%clk 0:00:12]} 46. Bxa2 {[%clk 0:00:02]}  Nxa2 {[%clk 0:00:13]} 47. Kg3 {[%clk 0:00:02]}  Nc3 {[%clk 0:00:13]} 48. Kg4 {[%clk 0:00:02]}  b3 {[%clk 0:00:14]} 49. Kg5 {[%clk 0:00:03]}  b2 {[%clk 0:00:14]} 50. Kh6 {[%clk 0:00:04]}  b1=Q {[%clk 0:00:15]} 51. Kg7 {[%clk 0:00:03]}  Qf5 {[%clk 0:00:16]} 52. Kxh7 {[%clk 0:00:03]}  Qh5+ {[%clk 0:00:17]} 53. Kg7 {[%clk 0:00:03]}  g5 {[%clk 0:00:17]} 54. Kf6 {[%clk 0:00:03]}  g4 {[%clk 0:00:18]} 55. Ke6 {[%clk 0:00:04]}  Qxh2 {[%clk 0:00:18]} 56. Kf5 {[%clk 0:00:02]}  g3 {[%clk 0:00:19]} 57. Kf4 {[%clk 0:00:03]}  g2+ {[%clk 0:00:19]} 58. Kf3 {[%clk 0:00:02]}  Qh3+ {[%clk 0:00:18]} 59. Kf2 {[%clk 0:00:02]}  Ne4+ {[%clk 0:00:18]} 60. Ke2 {[%clk 0:00:02]}  Qe3+ {[%clk 0:00:17]} 61. Kd1 {[%clk 0:00:01]}  Qd2# {[%clk 0:00:17]} 0-1


[Site "https://www.chess.com"]

[Event "Titled Tuesday Blitz June 6 Late 2023"]
[White "Kornyukov, Alexey"]
[Black "Mikhalsky, Vladimir"]
[WhiteFideId "4150457"]
[BlackFideId "14144352"]
[WhiteElo "2352"]
[BlackElo "2236"]
[Result "0-1"]
[Round "10"]
[TimeControl "180+2"]
[Date "2023.06.07"]
[WhiteClock "0:00:01"]
[BlackClock "0:00:17"]
[Board "98"]

1. d4 {[%clk 0:03:00]}  Nf6 {[%clk 0:02:59]} 2. c4 {[%clk 0:03:00]}  g6 {[%clk 0:02:58]} 3. f3 {[%clk 0:03:00]}  Bg7 {[%clk 0:02:58]} 4. e4 {[%clk 0:03:00]}  d6 {[%clk 0:02:58]} 5. Nc3 {[%clk 0:03:01]}  O-O {[%clk 0:02:58]} 6. Bg5 {[%clk 0:03:01]}  c5 {[%clk 0:02:55]} 7. d5 {[%clk 0:03:01]}  Qa5 {[%clk 0:02:55]} 8. Qd2 {[%clk 0:02:41]}  e6 {[%clk 0:02:54]} 9. a4 {[%clk 0:02:35]}  Na6 {[%clk 0:02:49]} 10. Nge2 {[%clk 0:02:20]}  Nb4 {[%clk 0:02:43]} 11. Nc1 {[%clk 0:02:19]}  exd5 {[%clk 0:02:42]} 12. cxd5 {[%clk 0:02:17]}  Re8 {[%clk 0:02:39]} 13. Be2 {[%clk 0:02:12]}  a6 {[%clk 0:02:31]} 14. O-O {[%clk 0:02:08]}  c4 {[%clk 0:02:30]} 15. Ra3 {[%clk 0:01:46]}  Bd7 {[%clk 0:02:24]} 16. Nd1 {[%clk 0:01:17]}  Nfxd5 {[%clk 0:01:44]} 17. exd5 {[%clk 0:01:13]}  Qxd5 {[%clk 0:01:43]} 18. Qxd5 {[%clk 0:01:06]}  Nxd5 {[%clk 0:01:43]} 19. Bxc4 {[%clk 0:01:04]}  Nb6 {[%clk 0:01:43]} 20. Bd3 {[%clk 0:00:58]}  Nxa4 {[%clk 0:01:42]} 21. Be4 {[%clk 0:00:41]}  Nc5 {[%clk 0:01:11]} 22. Bd5 {[%clk 0:00:36]}  Re5 {[%clk 0:01:10]} 23. b4 {[%clk 0:00:26]}  Rxg5 {[%clk 0:01:01]} 24. bxc5 {[%clk 0:00:26]}  Rxd5 {[%clk 0:01:01]} 25. cxd6 {[%clk 0:00:25]}  Rxd6 {[%clk 0:01:00]} 26. Re1 {[%clk 0:00:21]}  Re8 {[%clk 0:00:58]} 27. Rxe8+ {[%clk 0:00:17]}  Bxe8 {[%clk 0:00:58]} 28. Ne3 {[%clk 0:00:13]}  Bb2 {[%clk 0:00:56]} 29. Rd3 {[%clk 0:00:12]}  Rxd3 {[%clk 0:00:39]} 30. Nxd3 {[%clk 0:00:12]}  Bd4 {[%clk 0:00:39]} 31. Kf2 {[%clk 0:00:12]}  Bb5 {[%clk 0:00:38]} 32. Nb4 {[%clk 0:00:10]}  f5 {[%clk 0:00:34]} 33. f4 {[%clk 0:00:10]}  g5 {[%clk 0:00:33]} 34. g3 {[%clk 0:00:10]}  gxf4 {[%clk 0:00:32]} 35. gxf4 {[%clk 0:00:10]}  Kf7 {[%clk 0:00:31]} 36. Kf3 {[%clk 0:00:10]}  Bxe3 {[%clk 0:00:27]} 37. Kxe3 {[%clk 0:00:09]}  Ke6 {[%clk 0:00:28]} 38. Kd4 {[%clk 0:00:09]}  Kd6 {[%clk 0:00:25]} 39. Nd5 {[%clk 0:00:07]}  a5 {[%clk 0:00:24]} 40. Ne3 {[%clk 0:00:06]}  Ke6 {[%clk 0:00:20]} 41. Kc5 {[%clk 0:00:05]}  Bc6 {[%clk 0:00:18]} 42. Nc2 {[%clk 0:00:01]}  a4 {[%clk 0:00:18]} 43. Nd4+ {[%clk 0:00:01]}  Kf6 {[%clk 0:00:17]} 0-1


[Site "https://www.chess.com"]